bitfinex-derivatives/quotes_BTCF0:USTF0_20250830
["timestamp","ask_amount","ask_price","bid_price","bid_amount"]
[1756520005869,0.02541366,107780.0,107770.0,1.04530605]
[1756520007370,0.09921596,107780.0,107770.0,1.04530605]
[1756520007572,0.12949548,107780.0,107770.0,0.68609]
[1756520007766,0.05569318,107780.0,107770.0,0.68450605]
[1756520007971,0.05569318,107780.0,107770.0,1.04530605]
[1756520008375,0.05569318,107780.0,107770.0,1.13808245]
[1756520011368,0.13037854,107780.0,107770.0,1.04530605]
[1756520012874,0.10496488,107780.0,107770.0,1.13808245]
[1756520013071,0.00013926,107790.0,107770.0,1.13808245]
[1756520013265,0.05125939,107790.0,107780.0,0.43121605]
[1756520013470,0.05125939,107790.0,107780.0,1.36033605]
[1756520013674,0.02557939,107790.0,107780.0,1.36033605]
[1756520014374,0.00013926,107790.0,107780.0,1.36033605]
[1756520015078,0.00013926,107790.0,107780.0,1.72313605]
[1756520016180,0.07382342,107790.0,107780.0,1.72313605]
[1756520016677,0.00013926,107790.0,107780.0,1.72313605]
[1756520016873,0.03060874,107790.0,107780.0,1.72313605]
[1756520017074,0.00013926,107790.0,107780.0,1.72313605]
[1756520017978,0.00013926,107790.0,107780.0,1.81590385]
[1756520019075,0.00013926,107790.0,107780.0,1.81466385]
[1756520019672,0.07283646,107790.0,107780.0,1.81466385]
[1756520020379,0.0986729,107790.0,107780.0,1.81466385]
[1756520027885,0.0986729,107790.0,107780.0,0.88678385]
[1756520028086,0.0986729,107790.0,107780.0,1.81306385]
[1756520029180,0.07283646,107790.0,107780.0,2.4222799]
[1756520029379,0.40139,107810.0,107800.0,0.072]
[1756520029583,0.04059,107810.0,107800.0,1.35701605]
[1756520032285,0.05700489,107810.0,107800.0,1.35649605]
[1756520032488,0.10311489,107810.0,107800.0,1.35649605]
[1756520033190,0.10311489,107810.0,107800.0,0.99728]
[1756520033382,0.10311489,107810.0,107800.0,1.35649605]
[1756520033980,0.10311489,107810.0,107800.0,0.072]
[1756520034187,0.17697822,107810.0,107800.0,1.35641605]
[1756520034387,0.71274217,107820.0,107810.0,0.072]
[1756520034587,0.81274217,107820.0,107810.0,0.072]
[1756520035479,0.28439012,107820.0,107810.0,0.072]
[1756520035684,0.64360617,107820.0,107810.0,0.072]
[1756520036286,0.64949617,107820.0,107810.0,0.072]
[1756520036486,0.67609493,107820.0,107810.0,0.072]
[1756520038591,0.67595438,107820.0,107810.0,0.072]
[1756520038792,0.75194733,107820.0,107810.0,0.072]
[1756520040485,0.39273128,107820.0,107810.0,0.43121605]
[1756520040888,0.11302171,107820.0,107810.0,0.88475805]
[1756520041291,0.11651171,107820.0,107810.0,0.88475805]
[1756520041490,0.10359171,107820.0,107810.0,1.13475805]
[1756520043489,0.10259171,107820.0,107810.0,1.13475805]
[1756520043689,0.00808,107830.0,107820.0,0.04368]
[1756520043900,0.021,107830.0,107820.0,1.71556605]
[1756520044189,0.01292,107830.0,107820.0,1.71556605]
[1756520044592,0.01292,107830.0,107820.0,1.35635]
[1756520044787,0.01292,107830.0,107820.0,1.71556605]
[1756520045098,0.01392,107830.0,107820.0,1.71556605]
[1756520045988,0.04067598,107830.0,107820.0,1.71556605]
[1756520046189,0.02775598,107830.0,107820.0,0.43335]
[1756520046395,0.02775598,107830.0,107820.0,2.0742621]
[1756520046790,0.10162045,107830.0,107820.0,2.0742621]
[1756520046992,0.02775598,107830.0,107820.0,2.0742621]
[1756520047193,0.02675598,107830.0,107820.0,2.0742621]
[1756520047488,0.00808,107840.0,107830.0,0.04368]
[1756520047692,0.021,107840.0,107830.0,0.07255]
[1756520047896,0.38021605,107840.0,107830.0,0.07255]
[1756520048292,0.40691715,107840.0,107830.0,0.07255]
[1756520048700,0.0487011,107840.0,107830.0,0.07255]
[1756520049295,0.40791715,107840.0,107830.0,0.07255]
[1756520050992,0.4815449,107840.0,107830.0,0.43176605]
[1756520051198,0.12232885,107840.0,107830.0,0.43176605]
[1756520051388,0.12232885,107840.0,107830.0,0.79256605]
[1756520051591,0.12232885,107840.0,107830.0,0.43176605]
[1756520053492,0.11424885,107840.0,107830.0,0.79256605]
[1756520053692,0.12232885,107840.0,107830.0,0.79256605]
[1756520054000,0.10132885,107840.0,107830.0,0.79256605]
[1756520054692,0.1256988,107840.0,107830.0,0.79256605]
[1756520055888,0.1386188,107840.0,107830.0,0.79256605]
[1756520056697,0.1386188,107840.0,107830.0,1.71312605]
[1756520056698,0.1466988,107840.0,107830.0,1.71312605]
[1756520057202,0.1466988,107840.0,107830.0,1.35391]
[1756520057402,0.1466988,107840.0,107830.0,1.71312605]
[1756520060295,0.1466988,107840.0,107830.0,1.71264605]
[1756520060496,0.1466988,107840.0,107830.0,1.35343]
[1756520060700,0.1466988,107840.0,107830.0,1.71264605]
[1756520063507,0.1386188,107840.0,107830.0,1.71264605]
[1756520064104,0.1256988,107840.0,107830.0,1.71264605]
[1756520069513,0.1256988,107840.0,107830.0,1.35343]
[1756520069813,0.1256988,107840.0,107830.0,1.71264605]
[1756520074717,0.10032885,107840.0,107830.0,1.71264605]
[1756520074912,0.36631605,107850.0,107830.0,1.71264605]
[1756520075214,0.50208619,107850.0,107840.0,0.07536]
[1756520075409,0.57577468,107850.0,107840.0,0.43416903]
[1756520076013,0.6016736,107850.0,107840.0,0.43416903]
[1756520078014,0.6026736,107850.0,107840.0,0.46412903]
[1756520078616,0.22644457,107850.0,107840.0,0.82293806]
[1756520079116,0.22644457,107850.0,107840.0,1.16565436]
[1756520079322,0.10099162,107850.0,107840.0,1.52645436]
[1756520080217,0.10099162,107850.0,107840.0,1.43373806]
[1756520080618,0.83737065,107850.0,107840.0,0.10532]
[1756520080812,0.86281542,107850.0,107840.0,0.46412903]
[1756520081319,0.86283613,107850.0,107840.0,0.10532]
[1756520084228,0.14320639,107850.0,107840.0,0.46414974]
[1756520084426,0.11776162,107850.0,107840.0,0.82494974]
[1756520084732,0.10099162,107850.0,107840.0,1.07494974]
[1756520084927,0.10099162,107850.0,107840.0,1.63176]
[1756520085130,0.10099162,107850.0,107840.0,1.99058974]
[1756520092026,0.10099162,107850.0,107840.0,1.63176]
[1756520092237,0.10099162,107850.0,107840.0,1.99058974]
[1756520093934,0.10099162,107850.0,107840.0,1.07494974]
[1756520094134,0.10744162,107850.0,107840.0,1.98910974]
[1756520094336,0.10099162,107850.0,107840.0,1.98910974]
[1756520097835,0.09999162,107850.0,107840.0,1.98910974]
[1756520098032,0.47757,107870.0,107860.0,0.02988]
[1756520098336,0.86193782,107870.0,107860.0,0.07536]
[1756520098535,0.93647931,107870.0,107860.0,0.07536]
[1756520098739,0.93647931,107870.0,107860.0,0.02988]
[1756520099737,0.57764957,107870.0,107860.0,0.02988]
[1756520099939,0.93647931,107870.0,107860.0,0.07536]
[1756520100946,0.95885877,107870.0,107860.0,0.07536]
[1756520101341,0.60002903,107870.0,107860.0,0.07536]
[1756520101548,0.95985877,107870.0,107860.0,0.07536]
[1756520103948,0.60102903,107870.0,107860.0,0.43418974]
[1756520104850,0.24022903,107870.0,107860.0,0.43418974]
[1756520106452,0.59905877,107870.0,107860.0,0.07536]
[1756520107755,0.95985877,107870.0,107860.0,0.07536]
[1756520108148,0.95985877,107870.0,107860.0,0.10532]
[1756520113650,0.86929841,107870.0,107860.0,0.10532]
[1756520113956,0.51046867,107870.0,107860.0,0.10532]
[1756520114255,0.86929841,107870.0,107860.0,0.10532]
[1756520115253,0.8691723,107870.0,107860.0,0.46402363]
[1756520115660,0.8691723,107870.0,107860.0,0.41854363]
[1756520115847,0.8691723,107870.0,107860.0,0.46221363]
[1756520116260,0.8691723,107870.0,107860.0,0.10351]
[1756520116557,0.8691723,107870.0,107860.0,0.46221363]
[1756520116858,0.8691723,107870.0,107860.0,0.10351]
[1756520117156,0.8691723,107870.0,107860.0,0.41854363]
[1756520117353,0.8691723,107870.0,107860.0,0.05984]
[1756520117858,0.8691723,107870.0,107860.0,0.41854363]
[1756520118856,0.8691723,107870.0,107860.0,0.05984]
[1756520119061,0.8691723,107870.0,107860.0,0.41854363]
[1756520119461,0.8691723,107870.0,107860.0,0.10351]
[1756520119664,0.8691723,107870.0,107860.0,0.46221363]
[1756520119961,0.8691723,107870.0,107860.0,0.10351]
[1756520120162,0.8691723,107870.0,107860.0,0.46221363]
[1756520120462,0.8691723,107870.0,107860.0,0.10351]
[1756520120766,0.51046867,107870.0,107860.0,0.46221363]
[1756520121059,1.7791323,107870.0,107860.0,0.46221363]
[1756520121666,1.42042867,107870.0,107860.0,0.46221363]
[1756520121961,1.7791323,107870.0,107860.0,0.10351]
[1756520122164,1.7791323,107870.0,107860.0,0.46221363]
[1756520122567,0.8691723,107870.0,107860.0,0.46221363]
[1756520122764,1.7788523,107870.0,107860.0,0.46221363]
[1756520126769,1.7788523,107870.0,107860.0,0.10351]
[1756520126969,1.7788523,107870.0,107860.0,0.46221363]
[1756520127570,0.8691723,107870.0,107860.0,0.46221363]
[1756520127771,1.7782523,107870.0,107860.0,0.46221363]
[1756520127970,1.7782523,107870.0,107860.0,0.10351]
[1756520128171,1.7782523,107870.0,107860.0,0.46221363]
[1756520128570,1.7782523,107870.0,107860.0,0.10351]
[1756520128764,1.7782523,107870.0,107860.0,0.46221363]
[1756520128960,1.7780923,107870.0,107860.0,0.46221363]
[1756520131170,0.51046867,107870.0,107860.0,0.46221363]
[1756520131370,1.41886867,107870.0,107860.0,0.82091726]
[1756520131675,1.7775723,107870.0,107860.0,0.82091726]
[1756520133676,1.7775723,107870.0,107860.0,0.46221363]
[1756520133979,1.7775723,107870.0,107860.0,0.05984]
[1756520134274,1.7775723,107870.0,107860.0,0.02996]
[1756520135274,1.7775723,107870.0,107860.0,0.38866363]
[1756520135681,1.7775723,107870.0,107860.0,0.02996]
[1756520137985,1.7775723,107870.0,107860.0,0.38866363]
[1756520138185,1.7775723,107870.0,107860.0,0.02996]
[1756520138484,1.7775723,107870.0,107860.0,0.38866363]
[1756520139585,1.7775723,107870.0,107860.0,0.41767363]
[1756520140487,1.7775723,107870.0,107860.0,0.38866363]
[1756520141183,2.38627593,107870.0,107860.0,0.01087407]
[1756520141387,2.38627593,107870.0,107850.0,0.00346]
[1756520141584,1.07820726,107860.0,107850.0,0.00346]
[1756520141779,1.1036247,107860.0,107850.0,0.00346]
[1756520143684,1.1046247,107860.0,107850.0,0.00346]
[1756520144292,1.3546247,107860.0,107850.0,0.00346]
[1756520144478,1.3546247,107860.0,107830.0,0.07175]
[1756520144790,1.3546247,107860.0,107810.0,2.12452]
[1756520144791,0.07471,107820.0,107810.0,2.12452]
[1756520144978,0.07471,107820.0,107810.0,0.38981]
[1756520146087,0.09448488,107820.0,107810.0,0.76241363]
[1756520146786,0.09448488,107820.0,107810.0,0.80515363]
[1756520147383,0.09448488,107820.0,107810.0,0.80538693]
[1756520147689,0.09448488,107820.0,107810.0,0.44645]
[1756520147987,0.09448488,107820.0,107810.0,0.80538693]
[1756520148692,0.09448488,107820.0,107810.0,1.71146693]
[1756520148989,0.09448488,107820.0,107810.0,0.80538693]
[1756520149491,0.01977488,107820.0,107810.0,1.71110693]
[1756520149680,0.04485,107830.0,107810.0,1.71110693]
[1756520149882,0.07471,107830.0,107820.0,0.43068693]
[1756520150691,0.09527339,107830.0,107820.0,0.43068693]
[1756520151694,0.09527339,107830.0,107820.0,0.07175]
[1756520151891,0.09527339,107830.0,107820.0,0.43068693]
[1756520152092,0.05042339,107830.0,107820.0,0.43068693]
[1756520152292,0.09527339,107830.0,107820.0,0.43068693]
[1756520152797,0.09527339,107830.0,107820.0,0.43268693]
[1756520152990,0.09527339,107830.0,107820.0,0.07375]
[1756520153191,0.09527339,107830.0,107820.0,0.43268693]
[1756520153592,0.09527339,107830.0,107820.0,0.07375]
[1756520153797,0.09527339,107830.0,107820.0,0.43268693]
[1756520154798,0.09527339,107830.0,107820.0,0.07375]
[1756520154996,0.09527339,107830.0,107820.0,0.43268693]
[1756520156800,1.54082902,107840.0,107830.0,0.04274]
[1756520156994,1.54082902,107840.0,107830.0,0.07175]
[1756520159004,1.54082902,107840.0,107830.0,0.07275]
[1756520159301,1.56101001,107840.0,107830.0,0.03001]
[1756520159899,1.81101001,107840.0,107830.0,0.001]
[1756520160202,1.93633646,107840.0,107830.0,0.001]
[1756520161496,1.57739953,107840.0,107830.0,0.001]
[1756520161698,1.57739953,107840.0,107830.0,0.03001]
[1756520161998,1.57739953,107840.0,107830.0,0.001]
[1756520161999,1.93633646,107840.0,107830.0,0.001]
[1756520162197,1.93633646,107840.0,107830.0,0.03179]
[1756520162603,1.03065646,107840.0,107830.0,0.03179]
[1756520162803,1.93569646,107840.0,107830.0,0.03079]
[1756520163498,1.57659953,107840.0,107830.0,0.07355]
[1756520163698,1.93453646,107840.0,107830.0,0.03079]
[1756520163900,1.93653646,107840.0,107830.0,0.03079]
[1756520164095,0.78265646,107840.0,107830.0,0.07355]
[1756520164295,0.42371953,107840.0,107830.0,0.43248693]
[1756520164495,1.02598099,107840.0,107830.0,0.43248693]
[1756520164703,1.02594099,107840.0,107830.0,0.43248693]
[1756520166101,0.12118099,107840.0,107830.0,0.43248693]
[1756520166300,1.02482099,107840.0,107830.0,0.43248693]
[1756520166904,1.02382099,107840.0,107830.0,0.43248693]
[1756520167103,1.02462099,107840.0,107830.0,0.43248693]
[1756520167804,1.02462099,107840.0,107830.0,0.79328693]
[1756520168105,1.02462099,107840.0,107830.0,0.43435]
[1756520168301,1.02462099,107840.0,107830.0,0.79328693]
[1756520168607,0.12118099,107840.0,107830.0,0.80418693]
[1756520168902,0.12118099,107840.0,107830.0,1.05418693]
[1756520171998,0.12018099,107840.0,107830.0,1.05418693]
[1756520174803,0.14555998,107840.0,107830.0,1.05418693]
[1756520175109,0.14555998,107840.0,107830.0,0.69525]
[1756520175310,0.14555998,107840.0,107830.0,1.05418693]
[1756520178219,0.14555998,107840.0,107830.0,0.69338693]
[1756520180012,0.14655998,107840.0,107830.0,0.69338693]
[1756520180515,0.12118099,107840.0,107830.0,0.69338693]
[1756520182114,0.12118099,107840.0,107830.0,1.05418693]
[1756520187821,0.12018099,107840.0,107830.0,1.05418693]
[1756520188022,0.12018099,107840.0,107830.0,0.69525]
[1756520188222,0.12018099,107840.0,107830.0,1.05418693]
[1756520194824,0.14558714,107840.0,107830.0,1.05418693]
[1756520196929,0.14558714,107840.0,107830.0,0.69525]
[1756520197125,0.14558714,107840.0,107830.0,1.05418693]
[1756520197633,0.14558714,107840.0,107830.0,0.69525]
[1756520197926,0.1,107840.0,107830.0,1.10415143]
[1756520198126,0.9579,107860.0,107850.0,0.02858]
[1756520198328,1.10367572,107860.0,107850.0,0.43198693]
[1756520199429,1.10467572,107860.0,107850.0,0.07305]
[1756520199628,1.10467572,107860.0,107850.0,0.43198693]
[1756520200738,1.10467572,107860.0,107850.0,0.07305]
[1756520200926,1.10467572,107860.0,107850.0,0.43198693]
[1756520201732,1.10467572,107860.0,107850.0,0.07305]
[1756520201929,1.10367572,107860.0,107850.0,0.44288693]
[1756520202129,1.10467572,107860.0,107850.0,0.08395]
[1756520202330,1.10467572,107860.0,107850.0,0.44288693]
[1756520204935,0.14677572,107860.0,107850.0,0.44288693]
[1756520205130,0.20519572,107860.0,107850.0,0.44288693]
[1756520206329,0.14677572,107860.0,107850.0,0.08395]
[1756520206529,0.12135409,107860.0,107850.0,1.41262386]
[1756520206740,0.02135409,107860.0,107850.0,1.41262386]
[1756520207429,0.02135409,107860.0,107850.0,1.05368693]
[1756520208238,0.02035409,107860.0,107850.0,1.05368693]
[1756520208428,1.76710714,107880.0,107850.0,1.05368693]
[1756520208638,0.05842,107870.0,107860.0,0.43198693]
[1756520208829,0.18393175,107870.0,107860.0,0.43198693]
[1756520210430,0.15395175,107870.0,107860.0,0.07305]
[1756520210633,0.18493175,107870.0,107860.0,0.43198693]
[1756520210830,0.15495175,107870.0,107860.0,0.07305]
[1756520211037,0.18493175,107870.0,107860.0,0.79278693]
[1756520211236,0.15942,107870.0,107860.0,0.79278693]
[1756520211439,0.23482903,107870.0,107860.0,0.79278693]
[1756520211835,0.25263891,107870.0,107860.0,0.79278693]
[1756520212536,0.25263891,107870.0,107860.0,0.43385]
[1756520212744,0.25263891,107870.0,107860.0,0.79278693]
[1756520213245,0.19421891,107870.0,107860.0,0.79278693]
[1756520213638,0.22265891,107870.0,107860.0,0.43385]
[1756520213842,0.22265891,107870.0,107860.0,0.79278693]
[1756520214040,0.22265891,107870.0,107860.0,0.43385]
[1756520214240,0.25263891,107870.0,107860.0,0.79278693]
[1756520215040,0.22265891,107870.0,107860.0,0.79278693]
[1756520216640,0.25263891,107870.0,107860.0,0.79278693]
[1756520216841,0.25263891,107870.0,107860.0,0.80368693]
[1756520219237,0.25263891,107870.0,107860.0,0.44475]
[1756520219443,0.61157584,107870.0,107860.0,0.08395]
[1756520219840,0.88699361,107870.0,107860.0,0.08395]
[1756520220148,1.24779361,107870.0,107860.0,0.08395]
[1756520220552,1.24779361,107870.0,107860.0,0.03948]
[1756520221848,1.24779361,107870.0,107860.0,0.0109]
[1756520222151,0.07031,107860.0,107850.0,0.05517]
[1756520222341,1.7126647,107860.0,107850.0,0.05517]
[1756520222543,1.7126647,107860.0,107850.0,0.02889]
[1756520222742,0.04138,107850.0,107830.0,1.25796]
[1756520222943,0.43111,107850.0,107840.0,0.02019593]
[1756520223146,0.45652648,107850.0,107840.0,0.02019593]
[1756520224350,0.81546341,107850.0,107840.0,0.06316593]
[1756520224749,0.45652648,107850.0,107840.0,0.06316593]
[1756520224952,0.45466341,107850.0,107840.0,0.06316593]
[1756520226652,1.32624693,107850.0,107840.0,0.06316593]
[1756520227950,0.07031,107850.0,107840.0,0.06316593]
[1756520228153,0.07031,107850.0,107840.0,1.03290286]
[1756520228351,0.02893,107850.0,107840.0,1.03290286]
[1756520228660,0.04138,107860.0,107850.0,0.07186]
[1756520228661,0.96715,107860.0,107850.0,0.07186]
[1756520228960,0.99257291,107860.0,107850.0,0.07186]
[1756520229145,1.35150984,107860.0,107850.0,0.07186]
[1756520229348,0.99257291,107860.0,107850.0,0.07186]
[1756520230348,0.99257291,107860.0,107850.0,0.43079693]
[1756520230553,0.99357291,107860.0,107850.0,0.43079693]
[1756520230855,0.99357291,107860.0,107850.0,0.07186]
[1756520232555,0.09673291,107860.0,107850.0,0.07186]
[1756520233357,0.09673291,107860.0,107850.0,0.43079693]
[1756520233560,0.07131,107860.0,107850.0,0.43079693]
[1756520234059,1.59188864,107870.0,107860.0,0.07186]
[1756520234357,1.71731325,107870.0,107860.0,0.07186]
[1756520234959,1.71715325,107870.0,107860.0,0.07186]
[1756520236059,1.71815325,107870.0,107860.0,0.07186]
[1756520237157,1.73592338,107870.0,107860.0,0.07186]
[1756520238057,0.48054645,107870.0,107860.0,0.43079693]
[1756520238270,1.04043474,107870.0,107860.0,0.43079693]
[1756520238860,1.04043474,107870.0,107860.0,0.79159693]
[1756520239164,1.11613295,107870.0,107860.0,0.79159693]
[1756520239364,1.11505295,107870.0,107860.0,0.79159693]
[1756520241957,0.21889295,107870.0,107860.0,0.79159693]
[1756520242157,0.21889295,107870.0,107860.0,0.43266]
[1756520242462,0.21889295,107870.0,107860.0,0.79159693]
[1756520243458,0.21889295,107870.0,107860.0,1.04159693]
[1756520244763,0.19346834,107870.0,107860.0,1.04159693]
[1756520245360,0.19346834,107870.0,107860.0,2.02997573]
[1756520245361,0.09346834,107870.0,107860.0,2.02997573]
[1756520245560,0.89568,107890.0,107860.0,2.02997573]
[1756520245863,0.71973693,107900.0,107860.0,2.02997573]
[1756520245864,0.71973693,107900.0,107890.0,0.07186]
[1756520246059,1.74080477,107900.0,107890.0,0.07186]
[1756520246958,1.75847609,107900.0,107890.0,0.07186]
[1756520247164,1.39953916,107900.0,107890.0,0.07186]
[1756520247359,1.40153916,107900.0,107890.0,0.07186]
[1756520247561,1.76047609,107900.0,107890.0,0.02889]
[1756520247771,1.76047609,107900.0,107880.0,0.43266]
[1756520248061,1.47507408,107900.0,107880.0,0.07186]
[1756520248268,0.35893693,107890.0,107880.0,0.07186]
[1756520249665,0.45893693,107890.0,107880.0,0.07186]
[1756520250064,0.45993693,107890.0,107880.0,0.07186]
[1756520251065,1.35513693,107890.0,107880.0,0.07186]
[1756520251662,0.9962,107890.0,107880.0,0.07186]
[1756520251862,0.9962,107890.0,107880.0,0.43079693]
[1756520252064,1.35513693,107890.0,107880.0,0.43079693]
[1756520252463,1.35513693,107890.0,107880.0,0.07186]
[1756520253670,1.96593693,107890.0,107870.0,0.0273]
[1756520253869,0.45893693,107880.0,107870.0,0.0273]
[1756520254070,0.45893693,107880.0,107870.0,0.07032]
[1756520255559,0.1,107880.0,107870.0,0.07032]
[1756520255760,0.45893693,107880.0,107870.0,0.07032]
[1756520256772,0.45893693,107880.0,107870.0,0.0273]
[1756520256972,0.45893693,107880.0,107870.0,0.07032]
[1756520258068,0.45893693,107880.0,107870.0,0.43112]
[1756520259174,0.1,107880.0,107870.0,0.43112]
[1756520259375,0.45893693,107880.0,107870.0,0.43112]
[1756520259877,0.1,107880.0,107870.0,0.43112]
[1756520260576,0.1,107880.0,107870.0,0.79005693]
[1756520261176,0.1,107880.0,107870.0,0.42925693]
[1756520261876,0.1,107880.0,107870.0,0.43112]
[1756520262077,0.1,107880.0,107870.0,0.79005693]
[1756520265178,0.1,107880.0,107870.0,0.43112]
[1756520265380,0.1,107880.0,107870.0,0.79005693]
[1756520266982,0.1,107880.0,107870.0,1.93413693]
[1756520268685,0.1,107880.0,107870.0,1.93513693]
[1756520269484,0.1,107880.0,107870.0,2.02782763]
[1756520269887,1.34592624,107900.0,107890.0,0.07032]
[1756520270085,1.83031866,107900.0,107890.0,0.07032]
[1756520270787,1.47138173,107900.0,107890.0,0.07032]
[1756520271186,1.47238173,107900.0,107890.0,0.07032]
[1756520272687,1.47051866,107900.0,107890.0,0.07032]
[1756520272884,1.11158173,107900.0,107890.0,0.07032]
[1756520273088,1.11126173,107900.0,107890.0,0.42925693]
[1756520273884,1.11126173,107900.0,107890.0,0.81076427]
[1756520273885,0.21766173,107900.0,107890.0,0.81076427]
[1756520274090,0.09220624,107900.0,107890.0,0.81076427]
[1756520274482,0.09220624,107900.0,107890.0,1.70432427]
[1756520275385,0.09220624,107900.0,107890.0,1.95432427]
[1756520279392,0.09220624,107900.0,107890.0,1.70432427]
[1756520281191,0.09220624,107900.0,107890.0,1.79699777]
[1756520281584,0.35893693,107930.0,107890.0,2.04699777]
[1756520281792,0.15675,107920.0,107910.0,0.79187693]
[1756520281989,0.18268881,107920.0,107910.0,0.79187693]
[1756520282185,0.35851977,107930.0,107920.0,0.07214]
[1756520282382,0.17231406,107930.0,107920.0,0.07214]
[1756520282589,0.45893693,107930.0,107920.0,0.07214]
[1756520282784,0.45993693,107930.0,107920.0,0.07214]
[1756520282988,0.101,107930.0,107920.0,0.07214]
[1756520283194,0.45993693,107930.0,107920.0,0.07214]
[1756520283496,0.101,107930.0,107920.0,0.07214]
[1756520283697,0.45993693,107930.0,107920.0,0.07214]
[1756520283993,0.101,107930.0,107920.0,0.07214]
[1756520284191,0.45993693,107930.0,107920.0,0.07214]
[1756520285693,0.46293693,107930.0,107920.0,0.07214]
[1756520286296,0.104,107930.0,107920.0,0.07214]
[1756520286885,0.5375185,107930.0,107920.0,0.07214]
[1756520287290,0.17858157,107930.0,107920.0,0.07214]
[1756520287591,0.5375185,107930.0,107920.0,0.07214]
[1756520287897,0.17858157,107930.0,107920.0,0.07214]
[1756520288097,0.5375185,107930.0,107920.0,0.07214]
[1756520288396,0.17858157,107930.0,107920.0,0.07214]
[1756520288591,0.5375185,107930.0,107920.0,0.07214]
[1756520288791,0.17858157,107930.0,107920.0,0.07214]
[1756520288987,0.5375185,107930.0,107920.0,0.07214]
[1756520289383,1.4303985,107930.0,107920.0,0.07214]
[1756520289588,1.07146157,107930.0,107920.0,0.07214]
[1756520290098,1.4303985,107930.0,107920.0,0.07214]
[1756520291290,1.2475703,107930.0,107920.0,0.07214]
[1756520291695,1.0624294,107930.0,107920.0,0.07214]
[1756520291895,1.42136633,107930.0,107920.0,0.07214]
[1756520292900,1.0624294,107930.0,107920.0,0.09255677]
[1756520293102,1.42136633,107930.0,107920.0,0.09255677]
[1756520293303,1.42836633,107930.0,107920.0,0.09255677]
[1756520293505,0.53973296,107930.0,107920.0,0.09255677]
[1756520293708,1.43245296,107930.0,107920.0,0.09255677]
[1756520294203,1.45825043,107930.0,107920.0,0.09255677]
[1756520297109,1.45825043,107930.0,107920.0,0.02719]
[1756520297302,1.81905043,107930.0,107900.0,0.4537841]
[1756520297607,0.35893693,107920.0,107900.0,0.81272103]
[1756520297801,0.3847344,107920.0,107900.0,0.79187693]
[1756520298011,0.3847344,107920.0,107900.0,0.43294]
[1756520298198,0.3847344,107920.0,107900.0,0.79187693]
[1756520299413,0.3897344,107920.0,107900.0,0.43294]
[1756520299607,0.35893693,107910.0,107900.0,0.02719]
[1756520299915,0.38475726,107910.0,107900.0,0.07214]
[1756520300315,0.38475726,107910.0,107900.0,0.02719]
[1756520300509,0.38475726,107910.0,107900.0,0.07214]
[1756520301713,0.38475726,107910.0,107890.0,0.43294]
[1756520301714,0.91818033,107910.0,107890.0,0.43294]
[1756520301913,0.91918033,107910.0,107890.0,0.79649693]
[1756520302113,1.28311726,107910.0,107890.0,0.79649693]
[1756520302518,0.92418033,107910.0,107890.0,0.79649693]
[1756520302719,1.28311726,107910.0,107890.0,0.79649693]
[1756520302921,1.28211726,107910.0,107890.0,0.79649693]
[1756520303116,1.28011726,107910.0,107890.0,0.79649693]
[1756520305316,1.27911726,107910.0,107890.0,0.79649693]
[1756520305621,1.63991726,107910.0,107890.0,0.79849693]
[1756520306117,1.63991726,107910.0,107890.0,0.79649693]
[1756520306314,1.63991726,107910.0,107890.0,0.79749693]
[1756520307024,0.35893693,107900.0,107890.0,0.03281]
[1756520307225,0.74555726,107900.0,107890.0,0.03281]
[1756520308717,0.74755726,107900.0,107890.0,0.03281]
[1756520309817,0.38862033,107900.0,107890.0,0.07776]
[1756520310016,1.63971726,107900.0,107890.0,0.03281]
[1756520310626,1.28078033,107900.0,107890.0,0.03281]
[1756520310825,1.63959726,107900.0,107890.0,0.03281]
[1756520311227,1.63959726,107900.0,107890.0,0.07693]
[1756520311530,0.74755726,107900.0,107890.0,0.07693]
[1756520311823,1.63959726,107900.0,107890.0,0.07693]
[1756520312828,0.74755726,107900.0,107890.0,0.07693]
[1756520313029,1.63959726,107900.0,107890.0,0.07693]
[1756520313529,1.63955726,107900.0,107890.0,0.07693]
[1756520313729,1.28062033,107900.0,107890.0,0.07693]
[1756520313931,1.63955726,107900.0,107890.0,0.07693]
[1756520314333,1.28062033,107900.0,107890.0,0.07693]
[1756520314536,0.38862033,107900.0,107890.0,0.07693]
[1756520314831,0.89396,107900.0,107890.0,0.07693]
[1756520315025,0.89396,107900.0,107890.0,0.43586693]
[1756520317527,0.89396,107900.0,107890.0,0.79666693]
[1756520317726,0.89388,107900.0,107890.0,0.43586693]
[1756520318128,0.89388,107900.0,107890.0,0.79666693]
[1756520318328,0.89388,107900.0,107890.0,0.43586693]
[1756520319833,0.002,107900.0,107890.0,0.43586693]
[1756520320032,0.89384,107900.0,107890.0,0.43586693]
[1756520320534,0.89384,107900.0,107890.0,0.79666693]
[1756520321133,0.89372,107900.0,107890.0,0.79666693]
[1756520321733,0.002,107900.0,107890.0,0.79666693]
[1756520324741,0.02729573,107900.0,107890.0,0.79666693]
[1756520325227,0.02729573,107900.0,107890.0,2.03086113]
[1756520325228,0.002,107900.0,107890.0,2.03086113]
[1756520327141,0.43459603,107930.0,107920.0,0.07265]
[1756520327340,1.45134839,107930.0,107920.0,0.07265]
[1756520327543,1.45134839,107930.0,107920.0,0.02853]
[1756520327735,1.45134839,107930.0,107920.0,0.07265]
[1756520327936,1.81028532,107930.0,107920.0,0.07265]
[1756520328236,1.81028532,107930.0,107920.0,0.07727]
[1756520329439,1.81728532,107930.0,107920.0,0.07727]
[1756520329941,1.81228532,107930.0,107920.0,0.07727]
[1756520330143,1.81528532,107930.0,107920.0,0.07727]
[1756520330940,1.45448532,107930.0,107920.0,0.07727]
[1756520331236,1.81528532,107930.0,107920.0,0.07727]
[1756520331546,1.45634839,107930.0,107920.0,0.07727]
[1756520331842,1.81528532,107930.0,107920.0,0.07727]
[1756520332044,1.45634839,107930.0,107920.0,0.07727]
[1756520332443,1.81528532,107930.0,107920.0,0.07727]
[1756520332648,1.81508532,107930.0,107920.0,0.07727]
[1756520333541,1.45614839,107930.0,107920.0,0.07727]
[1756520333746,1.81508532,107930.0,107920.0,0.07727]
[1756520335250,1.45428532,107930.0,107920.0,0.07727]
[1756520335647,1.81508532,107930.0,107920.0,0.07727]
[1756520336748,1.09534839,107930.0,107920.0,0.07727]
[1756520336947,1.81508532,107930.0,107920.0,0.07727]
[1756520337557,0.56304532,107930.0,107920.0,0.07727]
[1756520337851,1.45404532,107930.0,107920.0,0.07727]
[1756520338252,0.56304532,107930.0,107920.0,0.07727]
[1756520338452,1.45400532,107930.0,107920.0,0.07727]
[1756520338753,0.56304532,107930.0,107920.0,0.07727]